bitfinex-derivatives/quotes_BTCF0:USTF0_20241110
["timestamp","ask_amount","ask_price","bid_price","bid_amount"]
[1731261723275,0.061971,80589.0,80581.0,0.422776]
[1731261723475,0.061966,80595.0,80588.0,0.3608]
[1731261724076,0.061966,80595.0,80592.0,0.061968]
[1731261724479,0.061966,80595.0,80593.0,0.061967]
[1731261724682,0.061961,80602.0,80588.0,0.42152357]
[1731261724880,0.40296,80607.0,80599.0,0.3608]
[1731261725179,0.00186178,80608.0,80599.0,0.3608]
[1731261725581,0.061958,80606.0,80599.0,0.3608]
[1731261726475,0.00186178,80608.0,80599.0,0.3608]
[1731261726676,0.061957,80607.0,80599.0,0.3608]
[1731261726872,0.14200196,80602.0,80591.0,0.13976]
[1731261727078,0.14200196,80602.0,80596.0,0.3608]
[1731261727985,0.13333336,80600.0,80596.0,0.3608]
[1731261728285,0.07137136,80600.0,80596.0,0.3608]
[1731261728487,0.061963,80598.0,80597.0,0.3608]
[1731261728788,0.07137136,80600.0,80589.0,0.3608]
[1731261728974,0.2872,80599.0,80589.0,0.3608]
[1731261729178,0.061958,80598.0,80596.0,0.3608]
[1731261729378,0.07137136,80600.0,80599.0,0.061957]
[1731261729578,0.07137136,80600.0,80596.0,0.3608]
[1731261730587,0.07137136,80600.0,80599.0,0.3608]
[1731261731786,0.07137136,80600.0,80584.0,0.3608]
[1731261731980,0.07137136,80600.0,80569.0,0.02481419]
[1731261731981,0.14200196,80587.0,80569.0,0.02481419]
[1731261732181,0.061968,80585.0,80569.0,0.44693625]
[1731261732385,0.14200196,80574.0,80569.0,0.44845625]
[1731261732888,0.14200196,80574.0,80569.0,0.51043625]
[1731261733691,0.14200196,80582.0,80574.0,0.061976]
[1731261733891,0.14200196,80582.0,80581.0,0.3608]
[1731261734479,0.2715,80586.0,80581.0,0.3608]
[1731261734788,0.2715,80586.0,80582.0,0.00136]
[1731261737086,0.2715,80586.0,80582.0,0.06333]
[1731261737591,0.2715,80586.0,80583.0,0.061969]
[1731261737788,0.14200196,80598.0,80596.0,0.06196]
[1731261737988,0.07137136,80600.0,80592.0,0.3608]
[1731261738183,0.07137136,80600.0,80599.0,0.3608]
[1731261739392,0.14200196,80617.0,80600.0,0.061957]
[1731261739591,0.14200196,80625.0,80607.0,0.3608]
[1731261739981,0.14200196,80625.0,80618.0,0.3608]
[1731261740293,0.20393996,80625.0,80618.0,0.3608]
[1731261740593,0.00013909,80622.0,80607.0,0.3608]
[1731261740803,0.14200196,80614.0,80607.0,0.3608]
[1731261741096,0.06207909,80622.0,80608.0,0.06195]
[1731261741287,0.06207909,80622.0,80614.0,0.3608]
[1731261741688,0.00013909,80622.0,80621.0,0.3608]
[1731261743094,0.00186137,80640.0,80637.0,0.061928]
[1731261743286,0.00186137,80640.0,80639.0,0.3608]
[1731261743485,0.2713,80654.0,80639.0,0.422726]
[1731261743486,0.333215,80654.0,80639.0,0.422726]
[1731261743691,0.06192,80648.0,80639.0,0.3608]
[1731261743998,0.14200196,80650.0,80647.0,0.3608]
[1731261744389,0.2735,80660.0,80647.0,0.3608]
[1731261744390,0.00010736,80649.0,80647.0,0.3608]
[1731261746293,0.061903,80671.0,80651.0,0.061917]
[1731261746499,0.14386249,80665.0,80664.0,0.3608]
[1731261746694,0.17420744,80665.0,80664.0,0.29015679]
[1731261746895,0.21224234,80665.0,80664.0,0.29015679]
[1731261747191,0.061909,80663.0,80651.0,0.3608]
[1731261747397,0.03034495,80662.0,80651.0,0.3608]
[1731261748599,0.06191,80661.0,80651.0,0.3608]
[1731261748796,0.06838079,80660.0,80651.0,0.3608]
[1731261748998,0.061915,80655.0,80648.0,0.42280991]
[1731261749302,0.14200196,80652.0,80648.0,0.3608]
[1731261749601,0.13030093,80651.0,80648.0,0.38561389]
[1731261749802,0.06838293,80650.0,80648.0,0.38561389]
[1731261750002,0.06838293,80649.0,80648.0,0.38561389]
[1731261750302,0.03034495,80649.0,80648.0,0.38561389]
[1731261750604,0.14200196,80652.0,80648.0,0.02481389]
[1731261751404,0.00186053,80665.0,80655.0,0.061914]
[1731261751598,0.06838862,80664.0,80655.0,0.422714]
[1731261751795,0.06838862,80664.0,80655.0,0.3608]
[1731261751997,0.06191,80661.0,80655.0,0.3608]
[1731261752199,0.13029962,80660.0,80655.0,0.3608]
[1731261752404,0.06838862,80659.0,80655.0,0.3608]
[1731261752602,0.061914,80656.0,80655.0,0.3608]
[1731261752797,0.09226265,80656.0,80655.0,0.3608]
[1731261753003,0.061916,80654.0,80648.0,0.02481389]
[1731261753207,0.03034865,80653.0,80648.0,0.02481389]
[1731261753406,0.03034865,80652.0,80649.0,0.061919]
[1731261753600,0.03034865,80651.0,80649.0,0.061919]
[1731261753806,0.061911,80660.0,80652.0,0.061916]
[1731261754005,0.061911,80660.0,80656.0,0.3608]
[1731261754704,0.14200196,80663.0,80656.0,0.3608]
[1731261754901,0.061912,80659.0,80656.0,0.3608]
[1731261756105,0.20391096,80663.0,80656.0,0.422714]
[1731261756507,0.14200196,80663.0,80656.0,0.3608]
[1731261756708,0.06191,80662.0,80649.0,0.3608]
[1731261756915,0.06191,80662.0,80634.0,0.061931]
[1731261756916,0.061924,80643.0,80634.0,0.061931]
[1731261757108,0.061924,80643.0,80633.0,0.3608]
[1731261757109,0.14200196,80642.0,80633.0,0.3608]
[1731261757411,0.14200196,80642.0,80638.0,0.061928]
[1731261758414,0.14200196,80642.0,80633.0,0.3608]
[1731261758415,0.061926,80640.0,80633.0,0.3608]
[1731261759206,0.14200196,80642.0,80633.0,0.3608]
[1731261759207,0.061927,80639.0,80633.0,0.3608]
[1731261759512,0.14200196,80642.0,80633.0,0.3608]
[1731261759713,0.14200196,80659.0,80640.0,0.3608]
[1731261760011,0.061917,80652.0,80642.0,0.061924]
[1731261760210,0.061917,80652.0,80640.0,0.3608]
[1731261760410,0.061917,80652.0,80645.0,0.061922]
[1731261760714,0.14200196,80659.0,80647.0,0.3608]
[1731261760914,0.061914,80656.0,80648.0,0.06192]
[1731261761210,0.061917,80653.0,80649.0,0.00991]
[1731261761421,0.061917,80653.0,80650.0,0.00136]
[1731261762504,0.061917,80652.0,80650.0,0.00136]
[1731261762707,0.14200196,80651.0,80650.0,0.00136]
[1731261763323,0.061917,80652.0,80650.0,0.00136]
[1731261763924,0.343702,80671.0,80650.0,0.00136]
[1731261763925,0.061908,80664.0,80650.0,0.00136]
[1731261764124,0.061905,80668.0,80658.0,0.061912]
[1731261764332,0.00186053,80665.0,80656.0,0.3608]
[1731261764526,0.00186053,80665.0,80663.0,0.061908]
[1731261766326,0.00186053,80665.0,80664.0,0.3608]
[1731261768229,0.061902,80672.0,80664.0,0.3608]
[1731261768230,0.2611,80685.0,80664.0,0.42163045]
[1731261768427,0.03033949,80684.0,80680.0,0.3608]
[1731261768633,0.20389196,80687.0,80680.0,0.3608]
[1731261768829,0.061892,80685.0,80675.0,0.061899]
[1731261769131,0.06836171,80684.0,80672.0,0.3608]
[1731261769329,0.06836171,80683.0,80672.0,0.3608]
[1731261769525,0.04443193,80686.0,80672.0,0.3608]
[1731261769526,0.06836171,80682.0,80672.0,0.3608]
[1731261769833,0.06836171,80681.0,80680.0,0.3608]
[1731261770523,0.06836171,80681.0,80680.0,0.422695]
[1731261774523,0.06836171,80681.0,80680.0,0.061895]
[1731261774733,0.06836171,80681.0,80677.0,0.3608]
[1731261774927,0.14200196,80678.0,80677.0,0.42350152]
[1731261775129,0.21036367,80678.0,80677.0,0.42350152]
[1731261775629,0.25479827,80678.0,80677.0,0.42350152]
[1731261775932,0.21036634,80678.0,80677.0,0.42350152]
[1731261776134,0.06836438,80678.0,80677.0,0.42486152]
[1731261776430,0.03891231,80678.0,80677.0,0.42486152]
[1731261776630,0.03891231,80678.0,80677.0,0.06406152]
[1731261776834,0.51384196,80678.0,80659.0,0.02479301]
[1731261777026,0.14200196,80660.0,80659.0,0.02479301]
[1731261777230,0.50280196,80660.0,80659.0,0.02479301]
[1731261777425,0.061914,80656.0,80648.0,0.06192]
[1731261777631,0.14200196,80653.0,80648.0,0.12461951]
[1731261777931,0.14200196,80653.0,80649.0,0.00991]
[1731261778132,0.061918,80650.0,80649.0,0.00991]
[1731261778434,0.09226901,80650.0,80649.0,0.00991]
[1731261778932,0.03035101,80650.0,80649.0,0.00991]
[1731261779141,0.14200196,80662.0,80655.0,0.061914]
[1731261779337,0.03034825,80661.0,80657.0,0.061912]
[1731261779636,0.03034825,80660.0,80657.0,0.061912]
[1731261779832,0.14200196,80662.0,80658.0,0.061912]
[1731261779833,0.03034825,80659.0,80658.0,0.061912]
[1731261780027,0.03034628,80659.0,80658.0,0.061912]
[1731261780637,0.03034628,80659.0,80652.0,0.3608]
[1731261780940,0.14200196,80655.0,80654.0,0.422715]
[1731261781339,0.14200196,80662.0,80654.0,0.3608]
[1731261781527,0.14200196,80662.0,80661.0,0.3608]
[1731261781728,0.17234553,80662.0,80649.0,0.00991]
[1731261781934,0.14200196,80650.0,80649.0,0.00991]
[1731261782130,0.061916,80654.0,80649.0,0.00991]
[1731261782341,0.3608,80655.0,80649.0,0.00991]
[1731261782734,0.14200196,80666.0,80654.0,0.3608]
[1731261782940,0.03034805,80665.0,80654.0,0.3608]
[1731261783238,0.061913,80657.0,80649.0,0.00991]
[1731261783435,0.14200196,80650.0,80649.0,0.00991]
[1731261783640,0.27231144,80650.0,80649.0,0.00991]
[1731261783837,0.62680595,80650.0,80646.0,0.00185989]
[1731261784142,0.3608,80647.0,80621.0,0.3608]
[1731261784339,0.061925,80642.0,80635.0,0.3608]
[1731261784539,0.06839089,80641.0,80635.0,0.3608]
[1731261785238,0.06839089,80640.0,80638.0,0.061928]
[1731261785440,0.13928,80659.0,80635.0,0.72308]
[1731261785735,0.03803828,80658.0,80649.0,0.061919]
[1731261785934,0.03803828,80657.0,80655.0,0.3608]
[1731261786140,0.03803828,80656.0,80655.0,0.3608]
[1731261786638,0.201185,80668.0,80655.0,0.3608]
[1731261786835,0.03803387,80667.0,80662.0,0.3608]
[1731261787043,0.03803387,80666.0,80662.0,0.3608]
[1731261787345,0.03803387,80665.0,80662.0,0.3608]
[1731261787549,0.18003583,80664.0,80638.0,0.00186015]
[1731261787741,0.3608,80641.0,80639.0,0.02479927]
[1731261788540,0.3608,80650.0,80644.0,0.061923]
[1731261788748,0.03804125,80649.0,80644.0,0.061923]
[1731261789050,0.03804125,80648.0,80642.0,0.3608]
[1731261789237,0.061923,80644.0,80639.0,0.02479927]
[1731261789440,0.061925,80642.0,80639.0,0.02479927]
[1731261789642,0.061926,80641.0,80639.0,0.02479927]
[1731261789844,0.061927,80639.0,80638.0,0.00186015]
[1731261790045,0.24197329,80639.0,80638.0,0.00186015]
[1731261790248,0.061928,80637.0,80627.0,0.06289115]
[1731261790448,0.09997233,80637.0,80616.0,0.3608]
[1731261790650,0.09997233,80637.0,80622.0,0.06182456]
[1731261791241,0.36156,80639.0,80630.0,0.061933]
[1731261791445,0.13932,80642.0,80623.0,0.03195424]
[1731261791446,0.0380501,80637.0,80623.0,0.03195424]
[1731261791749,0.0380501,80637.0,80629.0,0.3608]
[1731261792048,0.0380501,80637.0,80623.0,0.03195424]
[1731261792049,0.0380501,80637.0,80636.0,0.15192196]
[1731261792248,0.3608,80646.0,80636.0,1.01021965]
[1731261792443,0.00072,80671.0,80645.0,0.14200196]
[1731261792649,0.3608,80673.0,80666.0,0.061906]
[1731261793150,0.3608,80673.0,80664.0,0.3608]
[1731261793543,0.3608,80673.0,80671.0,0.061902]
[1731261795142,0.3608,80673.0,80665.0,0.2874]
[1731261795342,0.061903,80671.0,80665.0,0.2874]
[1731261796253,0.14386253,80676.0,80665.0,0.2874]
[1731261796452,0.061904,80670.0,80665.0,0.2874]
[1731261797445,0.14200196,80667.0,80654.0,0.061915]
[1731261797751,0.005,80651.0,80641.0,0.06137406]
[1731261797951,0.005,80651.0,80623.0,0.00715]
[1731261797952,0.86360196,80642.0,80623.0,0.00715]
[1731261798155,0.7216,80624.0,80623.0,0.069089]
[1731261798347,0.7216,80624.0,80623.0,0.079009]
[1731261798554,0.7216,80624.0,80623.0,0.66304226]
[1731261799352,0.3608,80624.0,80623.0,0.66304226]
[1731261799753,0.3608,80649.0,80625.0,0.061937]
[1731261799963,0.3608,80662.0,80649.0,0.061918]
[1731261800158,0.061913,80658.0,80647.0,0.06192]
[1731261800659,0.422709,80662.0,80653.0,0.061916]
[1731261800853,0.3608,80662.0,80648.0,0.18641668]
[1731261801059,0.3608,80665.0,80655.0,0.3608]
[1731261801252,0.3608,80665.0,80656.0,0.13908]
[1731261801459,0.3608,80665.0,80656.0,0.32549668]
[1731261801760,0.061897,80679.0,80671.0,0.061902]
[1731261802062,0.21841344,80684.0,80662.0,0.3608]
[1731261802063,0.061898,80677.0,80667.0,0.061905]
[1731261802360,0.21841344,80684.0,80668.0,0.061904]
[1731261802361,0.3608,80679.0,80668.0,0.061904]
[1731261802749,0.3608,80672.0,80656.0,0.13908]
[1731261802953,0.06836468,80671.0,80657.0,0.2864]
[1731261803156,0.06836468,80671.0,80661.0,0.06191]
[1731261803157,0.13026768,80671.0,80661.0,0.06191]
[1731261803358,0.06836468,80670.0,80659.0,0.3608]
[1731261803562,0.06836468,80669.0,80662.0,0.061909]
[1731261803760,0.06836468,80668.0,80663.0,0.061908]
[1731261803952,0.06836468,80667.0,80659.0,0.3608]
[1731261804157,0.06836468,80666.0,80659.0,0.3608]
[1731261804359,0.06836468,80665.0,80664.0,0.061907]
[1731261804559,0.03033728,80665.0,80664.0,0.061907]
[1731261804866,0.3608,80672.0,80669.0,0.061903]
[1731261805168,0.03033718,80671.0,80669.0,0.061903]
[1731261805353,0.03033718,80670.0,80669.0,0.061903]
[1731261807166,0.3608,80679.0,80670.0,0.061903]
[1731261807466,0.3608,80679.0,80671.0,0.061902]
[1731261807966,0.03033573,80678.0,80671.0,0.061902]
[1731261808167,0.03033573,80677.0,80671.0,0.061902]
[1731261808358,0.422696,80679.0,80671.0,0.061902]
[1731261808359,0.03033676,80676.0,80671.0,0.061902]
[1731261808560,0.03033676,80675.0,80673.0,0.0619]
[1731261808755,0.03033676,80674.0,80673.0,0.0619]
[1731261809470,0.423336,80679.0,80673.0,0.0619]
[1731261809661,0.03033641,80678.0,80673.0,0.0619]
[1731261809862,0.03033641,80677.0,80673.0,0.0619]
[1731261810169,0.423336,80679.0,80673.0,0.0619]
[1731261810373,0.3608,80679.0,80673.0,0.0619]
[1731261810665,0.619006,80763.0,80652.0,0.00185973]
[1731261810666,0.00068,80763.0,80721.0,0.3608]
[1731261810865,0.061828,80769.0,80762.0,0.57921344]
[1731261811070,0.3608,80779.0,80762.0,0.57921344]
[1731261811268,0.3608,80789.0,80762.0,0.57921344]
[1731261811269,0.3608,80789.0,80771.0,0.3608]
[1731261811461,0.13904,80787.0,80771.0,0.3608]
[1731261811863,0.061816,80784.0,80780.0,0.3608]
[1731261812078,0.13904,80787.0,80765.0,0.3608]
[1731261812079,0.13904,80787.0,80781.0,0.3608]
[1731261812266,0.061812,80790.0,80781.0,0.3608]
[1731261812267,0.061806,80797.0,80781.0,0.3608]
[1731261812475,0.139,80796.0,80790.0,0.3608]
[1731261813671,0.21841344,80794.0,80790.0,0.3608]
[1731261814060,0.51032,80793.0,80790.0,0.3608]
[1731261814474,0.139,80793.0,80792.0,0.3608]
[1731261815067,0.139,80794.0,80792.0,0.3608]
[1731261815268,0.1,80800.0,80792.0,0.3608]
[1731261815475,0.1,80800.0,80799.0,0.3608]
[1731261815768,0.1,80800.0,80799.0,0.7216]
[1731261816165,0.31841344,80800.0,80799.0,0.3608]
[1731261816362,0.1,80800.0,80799.0,0.7216]
[1731261817366,0.1,80800.0,80787.0,0.3608]
[1731261817367,0.47128,80800.0,80787.0,0.3608]
[1731261817567,0.47128,80800.0,80790.0,0.3608]
[1731261817568,0.21841344,80791.0,80790.0,0.3608]
[1731261817969,0.21841344,80791.0,80782.0,0.0099]
[1731261818472,0.3608,80786.0,80782.0,0.0099]
[1731261818873,0.37136,80785.0,80756.0,0.3608]
[1731261819070,0.21841344,80777.0,80763.0,0.3608]
[1731261819272,0.422615,80786.0,80764.0,0.06183]
[1731261819472,0.061815,80786.0,80764.0,0.06183]
[1731261819665,0.3608,80793.0,80770.0,0.3608]
[1731261819866,0.061805,80798.0,80779.0,0.42262]
[1731261820066,0.061809,80794.0,80779.0,0.2608]
[1731261820266,0.21841344,80789.0,80779.0,0.2608]
[1731261820469,0.21841344,80789.0,80778.0,0.3608]
[1731261820775,0.21841344,80789.0,80780.0,0.0099]
[1731261821168,0.13892,80790.0,80780.0,0.3707]
[1731261821364,0.13892,80790.0,80780.0,0.0099]
[1731261822063,0.061821,80781.0,80780.0,0.0099]
[1731261822262,0.061821,80781.0,80780.0,0.00791177]
[1731261822464,0.061829,80770.0,80762.0,0.00185732]
[1731261822670,0.35729344,80769.0,80762.0,0.00185732]
[1731261822964,0.13888,80768.0,80762.0,0.00185732]
[1731261823574,0.3608,80763.0,80762.0,0.00185732]
[1731261823779,0.061841,80758.0,80750.0,0.00015624]
[1731261824076,0.3608,80754.0,80750.0,0.00015624]
[1731261824277,0.28025944,80751.0,80750.0,0.00015624]
[1731261824576,0.433366,80751.0,80750.0,0.00015624]
[1731261824779,0.3608,80752.0,80750.0,0.00015624]
[1731261824980,0.422645,80752.0,80750.0,0.00015624]
[1731261825177,0.722645,80752.0,80750.0,0.00015624]
[1731261825370,0.37152,80751.0,80750.0,0.00015624]
[1731261825674,0.061858,80736.0,80731.0,0.01169]
[1731261825880,0.422658,80735.0,80731.0,0.01169]
[1731261826069,0.3608,80735.0,80731.0,0.01169]
[1731261826270,0.13888,80735.0,80733.0,0.061859]
[1731261826479,0.3608,80743.0,80737.0,0.061856]
[1731261826671,0.00010308,80742.0,80732.0,0.061855]
[1731261826873,0.00010308,80742.0,80740.0,0.061849]
[1731261827181,0.00010308,80742.0,80737.0,0.061851]
[1731261827880,0.00010308,80742.0,80741.0,0.061848]
[1731261828376,0.00010308,80742.0,80733.0,0.3608]
[1731261829175,0.00010308,80742.0,80740.0,0.3608]
[1731261829671,0.21841344,80741.0,80731.0,0.01169]
[1731261829877,0.061854,80734.0,80731.0,0.01169]
[1731261830084,0.061855,80733.0,80731.0,0.01169]
[1731261830377,0.36090308,80742.0,80734.0,0.061854]
[1731261830673,0.36090308,80742.0,80731.0,0.01169]
[1731261830877,0.00010308,80742.0,80741.0,0.061848]
[1731261832284,0.00010308,80742.0,80738.0,0.3608]
[1731261832573,0.00010308,80742.0,80738.0,0.42265]
[1731261833477,0.00010308,80742.0,80741.0,0.061848]
[1731261834479,0.00010308,80742.0,80738.0,0.3608]
[1731261834480,0.00010308,80742.0,80740.0,0.061849]
[1731261834679,0.00010308,80742.0,80738.0,0.3608]
[1731261835782,0.00010308,80742.0,80741.0,0.061848]
[1731261836573,0.00010308,80742.0,80741.0,0.422648]
[1731261837177,0.00185867,80774.0,80741.0,0.3608]
[1731261837377,0.00185867,80774.0,80757.0,0.061836]
[1731261837378,0.27069126,80766.0,80757.0,0.061836]
[1731261837580,0.0303112,80765.0,80757.0,0.061836]
[1731261837785,0.0303112,80764.0,80757.0,0.061836]
[1731261838087,0.0303112,80763.0,80757.0,0.061836]
[1731261838281,0.03036436,80762.0,80757.0,0.061836]
[1731261838485,5.316e-05,80762.0,80761.0,0.422633]
[1731261838982,5.316e-05,80762.0,80761.0,0.3608]
[1731261839684,0.03035704,80762.0,80761.0,0.3608]
[1731261839879,0.061834,80761.0,80756.0,0.3608]
[1731261840079,0.03030388,80760.0,80752.0,0.02477526]
[1731261840284,0.06829263,80760.0,80756.0,0.3608]
[1731261840481,0.061838,80755.0,80752.0,0.02477526]
[1731261840683,0.061841,80752.0,80746.0,0.41090548]
[1731261840880,0.09214488,80751.0,80746.0,0.3608]
[1731261841079,0.03030388,80750.0,80746.0,0.3608]
[1731261841678,0.03030388,80750.0,80748.0,0.061842]
[1731261841879,0.03030388,80749.0,80747.0,0.422644]
[1731261842181,0.03030388,80748.0,80747.0,0.422644]
[1731261842384,0.061827,80770.0,80747.0,0.422644]
[1731261842385,0.061829,80767.0,80753.0,0.061839]
[1731261842691,0.061829,80767.0,80761.0,0.3608]
[1731261842875,0.0683459,80762.0,80761.0,0.3608]
[1731261843679,0.0683459,80762.0,80749.0,0.061842]
[1731261843897,0.06829274,80761.0,80757.0,0.3608]
[1731261844182,5.316e-05,80762.0,80757.0,0.3608]
[1731261844487,5.316e-05,80762.0,80758.0,0.061835]
[1731261844985,5.316e-05,80762.0,80759.0,0.3608]
[1731261845284,5.316e-05,80762.0,80758.0,0.061835]
[1731261845682,5.316e-05,80762.0,80758.0,0.3608]
[1731261845881,5.316e-05,80762.0,80760.0,0.061833]
[1731261846086,5.316e-05,80762.0,80740.0,0.2661]
[1731261846087,0.58989344,80761.0,80743.0,0.3608]
[1731261846285,0.061846,80744.0,80734.0,0.061854]
[1731261846583,0.061846,80744.0,80730.0,0.422657]
[1731261846785,0.57921344,80761.0,80737.0,0.3608]
[1731261846983,0.3608,80742.0,80732.0,0.061855]
[1731261847175,0.3608,80742.0,80730.0,0.3608]
[1731261847379,0.3608,80753.0,80730.0,0.3608]
[1731261847380,0.061841,80751.0,80730.0,0.3608]
[1731261847582,0.061841,80751.0,80740.0,0.061849]
[1731261847782,0.202362,80750.0,80740.0,0.061849]
[1731261848187,0.14052,80750.0,80738.0,0.3608]
[1731261848389,0.14052,80750.0,80744.0,0.061846]
[1731261848586,0.14052,80750.0,80745.0,0.3608]
[1731261848789,0.061843,80748.0,80729.0,0.3608]
[1731261849601,0.061843,80748.0,80737.0,0.3608]
[1731261849789,0.061843,80748.0,80741.0,0.061848]
[1731261850492,0.14052,80750.0,80737.0,0.3608]
[1731261850794,0.061834,80761.0,80752.0,0.06184]
[1731261851094,0.061835,80759.0,80751.0,0.06184]
[1731261851390,0.14057316,80762.0,80746.0,0.2739]
[1731261851594,0.3608,80760.0,80746.0,0.2739]
[1731261851896,0.061852,80736.0,80720.0,0.3608]
[1731261852086,0.061855,80732.0,80715.0,0.3608]
[1731261852591,0.061866,80719.0,80715.0,0.3608]
[1731261852784,0.061866,80719.0,80708.0,0.00164]
[1731261852785,0.44001053,80718.0,80708.0,0.00164]
[1731261852989,0.44001053,80718.0,80700.0,0.3608]
[1731261853187,0.061878,80703.0,80692.0,0.00185895]
[1731261853392,0.09220075,80702.0,80692.0,0.00185895]
[1731261853597,0.03032175,80701.0,80692.0,0.00185895]
[1731261853789,0.03032175,80701.0,80692.0,0.05068324]
[1731261854097,0.03032175,80700.0,80692.0,0.06374495]
[1731261854398,0.061876,80705.0,80692.0,0.06374495]
[1731261854597,0.0303305,80704.0,80692.0,0.06374495]
[1731261854786,0.0303305,80703.0,80694.0,0.061884]
[1731261854986,0.0303305,80702.0,80700.0,0.3608]
[1731261855187,0.14052,80707.0,80700.0,0.3608]
[1731261855397,0.03032787,80706.0,80700.0,0.3608]
[1731261855699,0.03032787,80705.0,80700.0,0.3608]
[1731261855889,0.14052,80707.0,80700.0,0.3608]
[1731261856094,0.03032715,80706.0,80700.0,0.3608]
[1731261856394,0.03032715,80705.0,80700.0,0.3608]
[1731261856592,0.03032715,80704.0,80700.0,0.3608]
[1731261856788,0.14052,80707.0,80700.0,0.3608]
[1731261856988,0.0303273,80706.0,80700.0,0.3608]
[1731261857197,0.061875,80707.0,80700.0,0.3608]
[1731261857585,0.3608,80713.0,80700.0,0.3608]
[1731261857800,0.23275834,80712.0,80700.0,0.3608]
[1731261857999,0.03032734,80711.0,80700.0,0.3608]
[1731261858196,0.03032728,80710.0,80700.0,0.3608]
[1731261858399,0.03032728,80710.0,80698.0,0.08665714]
[1731261858400,0.3608,80704.0,80698.0,0.02477614]
[1731261858693,0.3608,80704.0,80695.0,0.061883]
[1731261858694,0.061876,80706.0,80695.0,0.061883]
[1731261858900,0.14056,80709.0,80692.0,0.00185895]
[1731261858901,0.53184533,80705.0,80692.0,0.00185895]
[1731261859093,0.03032918,80704.0,80692.0,0.00185895]
[1731261859288,0.42283215,80705.0,80692.0,0.06374495]
[1731261859489,0.00015615,80705.0,80699.0,0.061881]
[1731261859700,0.00015615,80705.0,80698.0,0.061881]
[1731261859903,0.00015615,80705.0,80703.0,0.061877]
[1731261860092,0.00015615,80705.0,80704.0,0.3608]
[1731261860600,0.21841344,80731.0,80704.0,0.3608]
[1731261860894,0.13888,80727.0,80717.0,0.061867]
[1731261861099,0.20074,80727.0,80717.0,0.061867]
[1731261861306,0.06186,80727.0,80717.0,0.061867]
[1731261861496,0.13888,80723.0,80717.0,0.061867]
[1731261861688,0.13888,80724.0,80717.0,0.061867]
[1731261862799,0.13888,80724.0,80718.0,0.061866]
[1731261863000,0.13888,80724.0,80719.0,0.061865]
[1731261863207,0.28026944,80731.0,80719.0,0.061865]
[1731261863208,0.061857,80730.0,80719.0,0.061865]
[1731261863501,0.13888,80723.0,80719.0,0.061865]
[1731261863899,0.3608,80743.0,80720.0,0.3608]
[1731261864202,0.13888,80740.0,80735.0,0.061853]
[1731261864502,0.06185,80739.0,80728.0,0.422658]
[1731261864702,0.06185,80739.0,80730.0,0.061857]
[1731261864998,0.061853,80735.0,80725.0,0.061861]
[1731261865205,0.061856,80732.0,80721.0,0.061864]
[1731261865597,0.21841344,80732.0,80721.0,0.061864]
[1731261865795,0.21841344,80732.0,80719.0,0.3608]
[1731261866006,0.21841344,80732.0,80709.0,0.3608]
[1731261866007,0.21841344,80723.0,80709.0,0.3608]
[1731261866302,0.3,80732.0,80706.0,0.2502]
[1731261866303,0.061871,80712.0,80706.0,0.2502]
[1731261866493,0.21841344,80714.0,80706.0,0.312075]
[1731261866700,0.13888,80715.0,80708.0,0.3608]
[1731261867105,0.13888,80720.0,80715.0,0.061868]
[1731261867305,0.13888,80720.0,80712.0,0.06187]
[1731261867502,0.13888,80720.0,80712.0,0.06177]
[1731261867803,0.13888,80720.0,80708.0,0.3608]
[1731261867804,0.061869,80715.0,80708.0,0.3608]
[1731261867997,0.21841344,80716.0,80694.0,0.3608]
[1731261867998,0.061869,80714.0,80694.0,0.3608]
[1731261868304,0.061884,80696.0,80694.0,0.3608]
[1731261869305,0.13888,80702.0,80697.0,0.061882]
[1731261869702,0.061879,80701.0,80694.0,0.3608]
[1731261870007,0.3608,80714.0,80694.0,0.3608]
[1731261870211,0.13888,80707.0,80694.0,0.3608]
[1731261870704,0.00185928,80719.0,80710.0,0.061872]
[1731261870901,0.16920585,80718.0,80708.0,0.3608]
[1731261871094,0.03032585,80717.0,80708.0,0.3608]
[1731261871304,0.200747,80718.0,80708.0,0.3608]
[1731261871507,0.03032409,80717.0,80708.0,0.061873]
[1731261871701,0.03032433,80716.0,80709.0,0.061873]
[1731261871908,0.200747,80718.0,80709.0,0.061873]
[1731261872205,0.200747,80718.0,80701.0,0.3608]
[1731261872206,0.03032399,80717.0,80713.0,0.061874]
[1731261872408,0.03032399,80717.0,80701.0,0.3608]
[1731261872409,0.0303251,80716.0,80706.0,0.06188]
[1731261872609,0.061874,80715.0,80706.0,0.06188]
[1731261872904,0.061875,80713.0,80701.0,0.3608]
[1731261873107,0.06188,80706.0,80701.0,0.3608]
[1731261873404,0.14153164,80706.0,80698.0,0.061886]
[1731261873606,0.13888,80705.0,80693.0,0.061889]
[1731261873905,0.061883,80703.0,80694.0,0.061889]
[1731261874410,0.06834831,80702.0,80696.0,0.061887]
[1731261874611,0.03033076,80701.0,80696.0,0.061887]
[1731261874812,0.03033076,80700.0,80692.0,0.42269]
[1731261875001,0.03033076,80699.0,80696.0,0.061888]
[1731261875203,0.03033076,80698.0,80696.0,0.061888]
[1731261875405,0.03033076,80697.0,80696.0,0.061888]
[1731261876020,0.061891,80692.0,80684.0,0.36265906]
[1731261876311,0.20342364,80690.0,80684.0,0.00185906]
[1731261876514,0.06835213,80689.0,80684.0,0.00185906]
[1731261876712,0.3608,80687.0,80684.0,0.00185906]
[1731261877008,0.39113076,80687.0,80684.0,0.00185906]
[1731261877213,0.42915524,80687.0,80664.0,0.00164]
[1731261877402,0.14153164,80675.0,80670.0,0.061907]
[1731261877709,0.03033076,80674.0,80670.0,0.061907]
[1731261877903,0.06836004,80674.0,80663.0,0.422713]
[1731261878107,0.14153164,80667.0,80663.0,0.422713]
[1731261878408,0.14153164,80667.0,80665.0,0.061912]
[1731261878409,0.0304497,80666.0,80665.0,0.061912]
[1731261879415,0.13892,80683.0,80665.0,0.433832]
[1731261879710,0.03802824,80682.0,80678.0,0.061901]
[1731261879903,0.03802824,80681.0,80678.0,0.061901]